bitfinex-derivatives/quotes_ETHF0:USTF0_20260214
["timestamp","ask_amount","ask_price","bid_price","bid_amount"]
[1771063404453,3.41316908,2074.8,2074.1,3.5012542]
[1771063405659,0.0051037,2074.8,2074.1,3.5012542]
[1771063405854,3.7e-06,2074.8,2074.1,3.5012542]
[1771063409462,3.7e-06,2074.8,2074.6,3.2600542]
[1771063409656,3.40806538,2075.7,2074.6,3.2600542]
[1771063409857,3.40806538,2075.7,2074.2,6.265]
[1771063409858,3.40806538,2075.5,2074.8,3.2600542]
[1771063410058,44.20806538,2075.4,2074.8,3.2600542]
[1771063410666,44.21228335,2075.4,2074.8,3.26451991]
[1771063411064,3.40806538,2075.3,2074.8,3.26451991]
[1771063411865,3.09015631,2075.3,2074.8,3.26451991]
[1771063415565,3.09015631,2075.3,2074.0,0.2412]
[1771063415771,3.09015631,2075.1,2074.0,3.2941053]
[1771063416170,3.09015631,2075.1,2074.0,0.2412]
[1771063416566,3.09015631,2075.1,2074.0,0.24614726]
[1771063418366,3.09015631,2074.9,2074.0,0.24614726]
[1771063419367,3.09015631,2074.9,2073.7,3.0529053]
[1771063420072,3.09015631,2074.9,2074.0,0.2412]
[1771063420273,3.09015631,2074.9,2074.0,0.24658503]
[1771063420573,3.09015631,2074.9,2074.1,2.95079068]
[1771063420773,3.09015631,2074.9,2074.0,0.24658503]
[1771063421175,3.09015631,2074.9,2074.0,3.19737571]
[1771063422074,3.09015631,2074.9,2074.0,0.24658503]
[1771063422267,3.09015631,2074.9,2074.0,3.19737571]
[1771063428577,3.09015631,2074.9,2074.5,0.01666666]
[1771063428777,3.09015631,2074.9,2074.2,2.95079068]
[1771063432883,2.94537031,2074.8,2074.2,2.95079068]
[1771063441798,2.82452614,2074.9,2074.4,3.05711676]
[1771063441998,2.82452614,2075.2,2074.4,3.05711676]
[1771063442193,2.82452614,2075.2,2074.6,3.05711676]
[1771063442600,4.63299911,2075.3,2074.6,3.05711676]
[1771063443295,2.82452614,2075.3,2074.6,3.05711676]
[1771063444397,2.82452614,2075.2,2074.6,3.05711676]
[1771063447001,2.82452614,2074.8,2074.5,0.24115]
[1771063447396,2.82452614,2074.8,2074.5,3.29826676]
[1771063450100,2.82452614,2074.8,2074.2,3.05711676]
[1771063459411,1.80847297,2074.7,2074.2,3.05711676]
[1771063459608,2.82452614,2074.6,2074.2,3.05711676]
[1771063463108,2.82452614,2074.6,2074.1,7.05411676]
[1771063463313,2.82452614,2074.4,2074.1,3.05711676]
[1771063464617,1.80847297,2074.7,2074.1,3.05711676]
[1771063464813,2.82452614,2074.8,2074.1,3.05711676]
[1771063465210,1.80847297,2074.9,2074.2,0.24118]
[1771063465411,2.82452614,2075.2,2074.3,3.05711676]
[1771063465617,1.80847297,2075.1,2074.5,3.05711676]
[1771063465813,2.82452614,2075.0,2074.5,3.05711676]
[1771063468118,2.82452614,2075.0,2074.4,3.29827676]
[1771063478227,4.63299911,2075.0,2074.4,0.24116]
[1771063478425,2.78516222,2074.9,2074.4,0.24116]
[1771063478627,2.78516222,2074.7,2074.4,0.24116]
[1771063478823,2.78516222,2074.7,2074.4,2.89691349]
[1771063479122,2.78516222,2074.7,2074.4,0.24116]
[1771063479319,2.78516222,2074.7,2074.0,2.66113852]
[1771063480820,2.6327842,2074.5,2074.0,2.84726955]
[1771063483033,2.6327842,2074.5,2074.0,0.00538503]
[1771063483933,2.6327842,2074.5,2073.9,0.24121]
[1771063484630,2.6327842,2074.5,2073.9,3.08309452]
[1771063484931,2.6327842,2074.5,2073.9,3.08879263]
[1771063486830,2.6327842,2074.5,2073.9,0.24690811]
[1771063488935,2.6327842,2074.5,2073.6,2.84188452]
[1771063489130,2.6327842,2074.5,2073.9,0.24121]
[1771063489928,2.6327842,2074.5,2073.9,0.24605275]
[1771063490433,2.6327842,2074.5,2073.9,3.08793727]
[1771063494735,2.6327842,2074.9,2073.9,3.08793727]
[1771063504243,2.56201976,2074.7,2073.9,3.08793727]
[1771063506743,2.56201976,2074.9,2073.9,3.08793727]
[1771063507344,2.56201976,2074.7,2073.9,3.08793727]
[1771063508045,2.56201976,2075.0,2073.9,3.08793727]
[1771063508246,9.28147432,2074.9,2074.4,2.81882487]
[1771063508544,2.56201976,2075.2,2074.4,2.81882487]
[1771063508746,5.402,2075.3,2074.4,2.81882487]
[1771063508747,2.56201976,2075.1,2074.4,2.81882487]
[1771063510043,2.56201976,2075.1,2074.3,0.24117]
[1771063510447,2.56201976,2075.1,2074.3,3.05999487]
[1771063523062,40.80421797,2075.4,2074.3,3.05999487]
[1771063523361,2.56201976,2075.2,2074.3,3.05999487]
[1771063542864,2.43845752,2075.1,2074.3,3.05999487]
[1771063543271,2.43845752,2074.9,2074.3,3.05999487]
[1771063545470,2.43845752,2075.3,2074.6,2.46338465]
[1771063545672,2.43845752,2075.1,2074.6,2.46338465]
[1771063547069,2.43845752,2074.9,2074.5,2.70453465]
[1771063551273,2.43845752,2074.9,2074.4,2.46338465]
[1771063551879,2.43845752,2074.9,2074.0,2.70459465]
[1771063554682,1.80797431,2074.8,2074.0,2.70459465]
[1771063554979,2.43845752,2074.7,2074.0,2.70459465]
[1771063555281,2.43845752,2074.9,2074.0,2.70459465]
[1771063555483,2.43845752,2075.1,2074.5,2.46338465]
[1771063560780,2.43845752,2075.3,2074.7,2.46338465]
[1771063563188,43.3658137,2075.4,2074.9,2.5665164]
[1771063563585,2.56159573,2075.6,2075.1,2.5665164]
[1771063564084,43.36159573,2075.5,2075.1,2.5665164]
[1771063564285,2.56159573,2075.7,2075.1,2.5665164]
[1771063564589,2.56511899,2075.7,2075.1,2.5665164]
[1771063564795,43.36159573,2075.6,2075.1,2.5665164]
[1771063565591,2.56159573,2075.5,2075.1,2.5665164]
[1771063566488,2.56159573,2075.5,2075.0,0.24109]
[1771063566697,2.56159573,2075.5,2075.0,2.8076064]
[1771063570390,40.8,2075.6,2075.0,2.8076064]
[1771063570593,43.36159573,2075.6,2075.0,2.8076064]
[1771063570788,2.56159573,2075.5,2075.0,2.8076064]
[1771063571188,2.56511899,2075.7,2075.0,2.8076064]
[1771063578300,2.56159573,2075.6,2075.0,2.8076064]
[1771063583506,0.00352326,2075.7,2075.0,2.8076064]
[1771063583695,2.56511899,2075.7,2075.0,2.8076064]
[1771063585508,2.56159573,2075.5,2075.0,0.24109]
[1771063587408,2.56159573,2075.5,2075.0,2.8076064]
[1771063587605,0.00352326,2075.7,2075.0,4.61558071]
[1771063587805,2.56511899,2075.7,2075.3,2.5665164]
[1771063592214,1.80797431,2075.5,2074.7,2.69507731]
[1771063592512,2.37377566,2075.4,2074.7,2.69507731]
[1771063592909,2.37377566,2075.2,2074.7,2.69507731]
[1771063595415,0.00352326,2075.7,2074.2,6.58597431]
[1771063595416,2.37377566,2075.0,2074.3,2.45395731]
[1771063602922,2.32010883,2074.8,2074.3,2.45395731]
[1771063603122,2.32010883,2074.8,2074.2,7.53431253]
[1771063603323,2.32010883,2074.8,2074.2,2.75631253]
[1771063645767,2.50660389,2075.2,2074.2,2.75631253]
[1771063645968,2.50660389,2075.0,2074.2,2.75631253]
[1771063660183,2.50660389,2075.0,2074.3,2.34366002]
[1771063666287,2.50660389,2075.0,2074.2,2.58484002]
[1771063666888,2.27874718,2074.8,2074.2,2.58484002]
[1771063668285,2.27874718,2074.6,2074.2,0.24118]
[1771063669084,2.27874718,2074.5,2074.2,0.24118]
[1771063669286,2.27874718,2074.5,2074.0,2.34366002]
[1771063670085,2.27874718,2074.5,2074.2,0.24118]
[1771063670286,2.27874718,2074.5,2074.0,2.34366002]
[1771063671187,2.27874718,2074.5,2074.2,0.24118]
[1771063671388,2.27874718,2074.4,2073.9,0.00484275]
[1771063671689,2.27874718,2074.4,2073.9,2.34850277]
[1771063673387,43.07874718,2074.6,2073.9,2.34850277]
[1771063674593,2.27874718,2074.5,2073.9,2.34850277]
[1771063674890,2.27874718,2074.5,2074.1,2.34366002]
[1771063679296,2.27874718,2074.5,2074.0,0.24121]
[1771063679501,2.27874718,2074.2,2073.7,2.34366002]
[1771063679703,2.27874718,2074.2,2073.5,2.58492002]
[1771063680502,2.27874718,2074.0,2073.5,0.24126]
[1771063680699,2.27874718,2074.0,2073.5,2.34967993]
[1771063681197,2.38587692,2074.1,2073.5,2.34967993]
[1771063681397,2.38587692,2074.5,2073.9,2.33740306]
[1771063682403,2.3917173,2074.5,2073.9,2.33740306]
[1771063682905,2.3917173,2074.5,2074.1,2.33740306]
[1771063686907,2.3917173,2074.5,2074.0,0.24121]
[1771063687208,2.3917173,2074.5,2074.0,2.57861306]
[1771063688909,2.3917173,2074.5,2074.0,0.24121]
[1771063689312,2.3917173,2074.5,2074.0,2.57861306]
[1771063689610,2.38587692,2074.2,2073.8,2.33740306]
[1771063691215,2.38587692,2074.2,2074.0,0.24121]
[1771063692514,2.38587692,2074.4,2074.0,2.57861306]
[1771063694509,2.3917173,2074.5,2074.0,2.57861306]
[1771063696017,0.00584038,2074.5,2074.0,2.57861306]
[1771063696714,2.3917173,2074.5,2074.0,2.57861306]
[1771063698408,0.00584038,2074.5,2074.0,2.57861306]
[1771063699012,40.8,2074.7,2074.3,2.33740306]
[1771063699712,2.38587692,2074.9,2074.3,2.33740306]
[1771063700016,2.38991253,2074.9,2074.3,2.33740306]
[1771063700215,43.18587692,2074.8,2074.3,2.33740306]
[1771063700612,2.38587692,2074.8,2074.3,2.33740306]
[1771063701513,40.80403561,2074.9,2074.3,2.33740306]
[1771063701719,2.38587692,2075.1,2074.5,2.33740306]
[1771063702214,2.38587692,2074.9,2074.5,2.33740306]
[1771063702415,1.90351683,2074.9,2074.5,2.33740306]
[1771063702710,1.9069799,2074.9,2074.5,2.33740306]
[1771063702915,1.9069799,2074.9,2074.4,2.57856306]
[1771063707725,4.26038988,2076.0,2074.6,0.24114]
[1771063708020,1.8085581,2075.4,2074.7,2.33740306]
[1771063708216,2.38587692,2075.3,2074.7,2.33740306]
[1771063708821,2.39024773,2075.3,2074.7,2.33740306]
[1771063709223,2.39024773,2075.3,2074.9,2.33740306]
[1771063709420,0.00437081,2075.3,2074.9,2.33740306]
[1771063709725,2.39024773,2075.3,2074.8,2.57851306]
[1771063713527,2.39024773,2075.3,2074.8,0.24111]
[1771063713729,2.39024773,2075.3,2074.8,2.51030993]
[1771063715828,0.00437081,2075.3,2074.8,2.51030993]
[1771063716028,2.26172522,2075.3,2074.8,2.51030993]
[1771063717132,0.00437081,2075.3,2074.8,2.51030993]
[1771063717526,2.25735441,2075.7,2075.1,2.26919993]
[1771063718731,2.26301063,2075.7,2075.1,2.27309318]
[1771063724332,2.46877539,2075.5,2075.2,0.24107]
[1771063724827,2.46877539,2075.5,2075.1,0.00389325]
[1771063725033,2.46877539,2075.1,2074.7,2.57037908]
[1771063725424,2.46877539,2075.1,2074.7,0.24112]
[1771063725734,2.46877539,2074.7,2074.3,2.32925908]
[1771063725930,2.46877539,2074.7,2074.3,2.33551527]
[1771063726633,2.46877539,2074.8,2074.3,2.33551527]
[1771063728233,43.26877539,2074.8,2074.3,2.33551527]
[1771063729731,2.46877539,2074.8,2074.3,2.33551527]
[1771063731834,2.46877539,2074.9,2074.3,2.33551527]
[1771063732035,2.46877539,2074.9,2074.5,2.32925908]
[1771063732735,2.46877539,2075.1,2074.5,2.32925908]
[1771063733735,2.46877539,2075.1,2074.3,0.00625619]
[1771063733935,2.46877539,2074.8,2074.2,2.32925908]
[1771063734136,2.46877539,2074.8,2074.4,2.32925908]
[1771063734530,40.8,2075.2,2073.7,1.80826475]
[1771063734531,2.46877539,2075.1,2074.6,2.32925908]
[1771063734738,43.26877539,2075.2,2074.6,2.32925908]
[1771063734935,43.26877539,2075.2,2074.6,2.33532153]
[1771063735734,2.46877539,2075.1,2074.6,2.33532153]
[1771063736935,2.46877539,2075.1,2074.6,0.00606245]
[1771063737430,2.46877539,2075.1,2074.6,2.33532153]
[1771063738934,2.46877539,2075.1,2074.6,0.00606245]
[1771063739342,2.46877539,2075.1,2074.5,0.24115]
[1771063740436,2.46877539,2075.1,2074.6,2.32925908]
[1771063741233,2.46877539,2075.1,2074.5,0.24619401]
[1771063741438,2.46877539,2075.1,2074.5,2.57850572]
[1771063745037,2.46877539,2075.1,2074.5,0.24619401]
[1771063745539,2.46877539,2075.1,2074.5,2.57850572]
[1771063755041,40.8,2075.2,2074.5,2.57850572]
[1771063755248,2.36651372,2075.2,2074.5,2.57850572]
[1771063756349,2.36651372,2075.4,2074.5,2.57850572]
[1771063756545,2.36651372,2075.4,2075.0,2.33231171]
[1771063756745,40.8,2075.5,2075.2,2.33231171]
[1771063756948,2.36651372,2075.6,2075.2,2.33231171]
[1771063757944,2.36651372,2075.5,2075.2,2.33231171]
[1771063758740,2.36651372,2075.5,2075.1,2.57339171]
[1771063763553,0.00565622,2075.7,2075.1,2.57339171]
[1771063763755,2.37216994,2075.7,2075.1,2.57339171]
[1771063781557,2.48959954,2076.1,2075.1,2.57339171]
[1771063781961,40.8,2076.0,2075.1,2.57339171]
[1771063782165,43.28959954,2076.0,2075.1,2.57339171]
[1771063782362,2.48959954,2075.9,2075.1,2.57339171]
[1771063782659,8.16e-06,2075.9,2075.6,2.25523098]
[1771063782853,6.5114698,2076.6,2075.8,2.25523098]
[1771063783057,5.06487,2076.9,2076.0,2.25523098]
[1771063783058,2.48959954,2076.9,2076.0,2.25523098]
[1771063783258,2.48959954,2076.7,2075.9,0.24099]
[1771063783763,2.48959954,2076.5,2075.6,2.25523098]
[1771063784062,2.48959954,2076.5,2075.6,2.25935721]
[1771063784063,2.49319851,2076.5,2075.6,2.25935721]
[1771063784960,2.48959954,2076.2,2075.6,0.00412623]
[1771063785161,2.48959954,2076.2,2075.3,2.49628098]
[1771063786260,2.48959954,2076.2,2075.3,2.50135769]
[1771063788857,2.48959954,2075.9,2075.3,2.50135769]
[1771063791862,2.48959954,2075.5,2074.9,2.25523098]
[1771063792864,2.48959954,2075.5,2074.9,2.25906078]
[1771063794363,2.48959954,2075.3,2074.9,0.0038298]
[1771063794563,2.48959954,2075.3,2074.7,2.49635098]
[1771063795664,2.48959954,2075.3,2074.7,2.50001254]
[1771063799363,1.95782954,2075.3,2074.7,2.50001254]
[1771063799669,2.48959954,2075.5,2075.0,2.25523098]
[1771063801370,54.985,2076.1,2075.2,2.36442041]
[1771063801371,2.31690104,2075.6,2075.2,2.36442041]
[1771063802268,2.31690104,2075.8,2075.2,2.36442041]
[1771063804474,2.32690104,2075.8,2075.2,2.36442041]
[1771063805567,2.32690104,2075.8,2074.7,1.81010193]
[1771063805568,2.32690104,2075.8,2075.3,2.60548041]
[1771063808368,0.01,2075.8,2075.3,2.60548041]
[1771063808574,40.8,2076.1,2075.3,4.41192078]
[1771063808874,2.31690104,2075.9,2075.3,2.60548041]
[1771063814076,2.31690104,2076.0,2075.3,2.60548041]
[1771063814872,2.31690104,2076.0,2075.4,2.36442041]
[1771063816377,40.8,2076.1,2075.4,2.36442041]
[1771063816772,43.11690104,2076.1,2075.4,2.36442041]
[1771063820181,2.31690104,2076.0,2075.6,2.36442041]
[1771063821689,43.11690104,2076.1,2075.6,2.36442041]
[1771063822582,40.8,2076.1,2075.8,2.35765141]
[1771063823086,2.36392375,2076.4,2075.8,2.35765141]
[1771063823581,0.00359897,2076.5,2075.8,2.35765141]
[1771063823582,43.16392375,2076.3,2075.8,2.35765141]
[1771063823986,2.36392375,2076.2,2075.8,2.35765141]
[1771063825380,4.17036412,2076.2,2075.7,0.24101]
[1771063825582,2.36392375,2076.1,2075.7,0.24101]
[1771063825985,2.36392375,2076.1,2075.7,2.59866141]
[1771063827890,2.36392375,2076.2,2075.7,2.59866141]
[1771063828399,43.16392375,2076.3,2075.7,2.59866141]
[1771063828595,40.8,2076.3,2075.7,2.59866141]
[1771063829190,2.36392375,2076.4,2075.7,2.59866141]
[1771063829690,43.16392375,2076.4,2075.7,2.59866141]
[1771063829887,2.36392375,2076.3,2075.7,2.59866141]
[1771063832392,2.36392375,2076.3,2075.7,0.24101]
[1771063832892,2.36392375,2076.3,2075.7,2.58285188]
[1771063840403,40.8,2076.4,2075.7,2.58285188]
[1771063840598,43.25946596,2076.4,2075.7,2.58285188]
[1771063840797,2.45946596,2076.4,2075.7,2.58285188]
[1771063841598,2.46306493,2076.5,2076.0,2.34184188]
[1771063841994,2.45946596,2076.4,2075.9,2.58283188]
[1771063843703,4.26590633,2076.4,2075.9,2.58283188]
[1771063843902,2.45946596,2076.3,2075.9,0.24099]
[1771063846599,2.45946596,2076.1,2075.9,0.24099]
[1771063846805,2.45946596,2076.1,2075.7,2.34184188]
[1771063849110,2.45946596,2076.1,2075.9,0.24099]
[1771063849405,2.45946596,2076.1,2075.7,2.34184188]
[1771063850203,2.45946596,2076.1,2075.9,0.24099]
[1771063850498,2.45946596,2076.1,2075.7,2.34184188]
[1771063851102,2.45946596,2076.1,2075.9,0.24099]
[1771063851302,2.45946596,2076.1,2075.7,2.34184188]
[1771063852208,2.45946596,2076.1,2075.9,0.24099]
[1771063852404,2.45946596,2076.1,2075.7,2.34184188]
[1771063852604,2.45946596,2076.1,2075.0,2.32545655]
[1771063852808,2.45946596,2076.1,2075.5,0.24103]
[1771063853107,2.45946596,2076.1,2075.5,2.56648655]
[1771063855709,2.45946596,2076.1,2075.1,2.32545655]
[1771063855909,2.36324,2075.9,2075.0,2.56654655]
[1771063859716,2.36324,2075.9,2075.0,0.24109]
[1771063860217,2.36324,2075.9,2075.0,2.56654655]
[1771063862017,2.4355935,2075.8,2075.0,2.56654655]
[1771063874226,2.4355935,2076.0,2075.0,2.56654655]
[1771063880331,2.4355935,2075.8,2075.0,2.56654655]
[1771063883931,2.4347935,2075.8,2075.0,2.56654655]
[1771063885633,2.4347935,2075.8,2075.0,2.56574655]
[1771063886635,2.4355935,2076.0,2075.0,2.56574655]
[1771063886932,9.15205973,2075.9,2075.0,2.56574655]
[1771063887135,2.4355935,2075.9,2075.0,2.56574655]
[1771063890243,2.4355935,2076.3,2075.5,2.42570978]
[1771063890444,2.4355935,2076.3,2075.7,2.42570978]
[1771063891145,2.4355935,2076.3,2075.9,2.44800672]
[1771063891339,2.4355935,2076.3,2075.8,0.241]
[1771063891545,2.4355935,2076.3,2075.8,2.68900672]
[1771063893641,40.80359897,2076.5,2075.8,2.68900672]
[1771063893847,43.13151691,2076.5,2075.8,2.68900672]
[1771063894245,2.32791794,2076.4,2075.8,2.68900672]
[1771063908555,2.32791794,2076.4,2075.8,0.241]
[1771063912568,2.32791794,2076.4,2075.8,2.5760318]
[1771063912964,2.22966558,2076.3,2075.8,2.5760318]
[1771063914770,2.22966558,2076.4,2075.8,2.5760318]
[1771063919069,43.03326455,2076.5,2075.8,2.5760318]
[1771063919964,2.22966558,2076.4,2075.8,2.5760318]
[1771063921362,2.45346651,2076.3,2075.8,0.241]
[1771063921666,2.45346651,2076.1,2075.8,0.241]
[1771063922061,2.45346651,2076.1,2075.4,2.21453652]
[1771063922266,2.45346651,2075.9,2075.4,2.21453652]
[1771063923063,2.45346651,2075.9,2075.3,0.24105]
[1771063923064,1.44462197,2076.2,2075.6,2.21453652]
[1771063923268,2.45346651,2076.3,2075.6,2.21453652]
[1771063923572,2.45346651,2076.3,2075.8,2.21453652]
[1771063924862,3.89808848,2076.4,2075.8,2.21453652]
[1771063926569,2.45346651,2076.3,2075.8,2.21453652]
[1771063930277,2.45346651,2076.3,2075.7,0.24101]
[1771063930770,2.45346651,2076.1,2075.7,0.24101]
[1771063930969,2.45346651,2075.9,2075.4,2.21453652]
[1771063932077,2.45346651,2075.9,2075.7,0.24101]
[1771063932478,2.45346651,2075.9,2075.5,2.21453652]
[1771063933078,2.45346651,2075.7,2075.3,2.21453652]
[1771063933280,2.45346651,2075.7,2075.2,2.45560652]
[1771063936382,2.45346651,2075.5,2075.2,2.45560652]
[1771063936885,2.45346651,2075.7,2075.2,2.45560652]
[1771063939887,1.44462197,2075.8,2075.2,2.45560652]
[1771063940082,2.45346651,2076.1,2075.2,2.45560652]
[1771063953190,2.31348538,2075.9,2075.2,2.45560652]
[1771064022246,2.33796893,2076.2,2075.2,2.45560652]
[1771064022446,2.33796893,2076.0,2075.2,2.45560652]
[1771064028043,4.04306738,2076.4,2075.2,2.45560652]
[1771064028244,2.33796893,2076.2,2075.2,2.45560652]
[1771064028445,2.33796893,2076.3,2075.7,2.35364423]
[1771064028945,2.33796893,2076.3,2075.9,2.35364423]
[1771064031044,2.33796893,2076.3,2075.8,0.241]
[1771064031346,2.33796893,2076.3,2075.8,2.59464423]
[1771064040953,2.33796893,2076.4,2075.8,2.59464423]
[1771064041249,0.00359897,2076.5,2075.8,2.59464423]
[1771064042450,19.05206738,2077.2,2075.8,2.59464423]
[1771064042451,6.42330873,2077.2,2075.8,2.35364423]
[1771064042645,2.38024135,2077.1,2076.3,2.42625609]
[1771064042849,2.38024135,2076.9,2076.3,2.42625609]
[1771064043052,2.38024135,2076.7,2076.2,0.24094]
[1771064043255,2.38024135,2076.7,2076.2,2.66719609]
[1771064043645,2.38495127,2076.7,2076.2,2.67279732]
[1771064044050,2.38495127,2076.7,2076.2,0.24654123]
[1771064045452,2.38024135,2076.5,2076.2,0.24654123]
[1771064045853,2.38024135,2076.5,2076.0,2.42625609]
[1771064046055,2.38024135,2076.5,2076.2,0.24094]
[1771064046754,2.38024135,2076.5,2076.0,2.42625609]
[1771064047060,2.38024135,2076.5,2076.2,0.24094]
[1771064047853,2.38024135,2076.5,2076.2,0.24473919]
[1771064048356,2.38024135,2076.5,2076.2,2.67099528]
[1771064048761,2.38024135,2076.5,2076.2,0.24473919]
[1771064050161,2.38024135,2076.5,2076.2,2.67099528]
[1771064050354,2.38024135,2076.5,2075.8,2.42625609]
[1771064050656,2.38024135,2076.5,2075.9,2.42625609]
[1771064051457,2.38024135,2076.5,2075.9,2.42993321]
[1771064052154,2.38024135,2076.5,2076.2,0.24094]
[1771064052863,2.38024135,2076.5,2075.9,2.42993321]
[1771064053058,2.38024135,2076.5,2076.2,0.24094]
[1771064055564,2.38024135,2076.5,2076.0,2.42625609]
[1771064056066,2.38024135,2076.5,2076.2,0.24094]
[1771064057166,2.38024135,2076.5,2075.9,2.42993321]
[1771064058068,2.38024135,2076.5,2076.2,0.24094]
[1771064064574,2.38024135,2076.3,2075.9,0.00367712]
[1771064066778,2.38024135,2076.1,2075.7,0.24101]
[1771064067882,2.38024135,2076.1,2075.7,0.24598844]
[1771064071690,1.44468586,2076.0,2075.4,2.22459264]
[1771064071883,2.21309881,2075.9,2075.3,2.22459264]
[1771064072690,2.21309881,2075.9,2075.3,2.22952442]
[1771064073084,2.21309881,2075.9,2075.5,2.22459264]
[1771064076592,2.21309881,2075.9,2075.4,2.46563264]
[1771064077598,2.21309881,2075.7,2075.4,0.24104]
[1771064078088,2.21309881,2075.7,2075.3,0.00493178]
[1771064079093,2.21309881,2075.7,2075.4,0.24104]
[1771064079293,2.21309881,2075.7,2075.3,0.00493178]
[1771064080091,2.21309881,2075.7,2075.4,0.24104]
[1771064084996,1.44468586,2075.6,2074.9,2.35458992]
[1771064085197,2.18088263,2075.5,2074.9,2.35458992]
[1771064086096,2.18088263,2075.5,2074.9,2.35977818]
[1771064087799,2.18088263,2075.8,2075.2,2.11348992]
[1771064090901,2.18088263,2075.8,2075.3,2.35454992]
[1771064099608,2.18088263,2075.8,2075.3,0.24106]
[1771064101109,2.18088263,2075.8,2074.9,2.01194577]
[1771064102916,2.18088263,2075.8,2075.1,2.00675751]
[1771064103618,2.18088263,2075.8,2075.0,0.24109]
[1771064105714,5.48844473,2076.0,2075.0,0.24109]
[1771064105715,2.17066648,2075.6,2075.0,0.24109]
[1771064108311,2.17066648,2075.6,2074.9,0.00518826]
[1771064109214,2.17066648,2075.6,2075.0,0.24109]
[1771064111415,2.17066648,2075.6,2074.9,0.00518826]
[1771064112216,2.17066648,2075.6,2074.6,2.00675751]
[1771064112413,2.17066648,2075.4,2074.6,2.00675751]
[1771064113117,2.17066648,2075.4,2074.6,2.24788751]
[1771064113318,2.17066648,2075.4,2074.6,2.25210361]
[1771064119224,2.17066648,2075.4,2074.6,0.2453461]
[1771064119430,2.17066648,2075.4,2074.6,2.25210361]
[1771064129635,2.17066648,2075.2,2074.6,2.25210361]
[1771064129838,2.175832,2075.2,2074.6,2.25210361]
[1771064135238,2.175832,2075.2,2074.6,0.2453461]
[1771064135437,2.175832,2075.2,2074.6,2.19916696]
[1771064139142,1.44537735,2075.1,2074.2,1.95382086]
[1771064139441,2.10863412,2075.0,2074.2,1.95382086]
[1771064140141,2.10863412,2075.0,2074.2,1.95921195]
[1771064146544,2.10863412,2075.0,2074.1,2.3193043]
[1771064146748,2.01947042,2074.7,2073.7,2.0781143]
[1771064147642,2.01947042,2074.7,2073.7,2.08190784]
[1771064154044,2.01947042,2074.9,2073.9,2.0781143]
[1771064155050,2.01947042,2074.9,2074.0,0.24121]
[1771064155244,2.01947042,2074.9,2074.3,2.0781143]
[1771064155850,2.01947042,2075.1,2074.3,2.0781143]
[1771064156049,2.01947042,2075.1,2074.5,2.0781143]
[1771064157552,2.02463594,2075.2,2074.5,2.0781143]
[1771064159855,2.01947042,2075.0,2074.5,2.0781143]
[1771064162861,1.88301723,2074.8,2074.4,2.1687869]
[1771064163059,1.88301723,2075.1,2074.4,2.1687869]
[1771064163262,0.00516552,2075.2,2074.5,1.9276269]
[1771064163662,1.88818275,2075.2,2074.5,1.9276269]
[1771064166558,0.00516552,2075.2,2074.5,1.9276269]
[1771064166960,0.00516552,2075.2,2074.7,1.9276269]
[1771064167161,1.88818275,2075.2,2074.7,1.9276269]
[1771064174159,1.88301723,2075.1,2074.6,0.24114]
[1771064174361,1.88301723,2075.1,2074.6,2.1687669]
[1771064174564,1.88818275,2075.2,2074.6,2.1687669]
[1771064176367,0.00516552,2075.2,2074.6,2.1687669]
[1771064179362,1.88301723,2075.1,2074.6,2.1687669]
[1771064179867,1.44631762,2075.0,2074.6,2.1687669]
[1771064180067,1.88301723,2075.0,2074.6,2.1687669]
[1771064187366,1.88818275,2075.2,2074.6,2.1687669]
[1771064187866,1.88301723,2075.0,2074.6,0.24114]
[1771064188068,1.88301723,2075.0,2074.5,1.9276269]
[1771064188269,1.44631762,2074.9,2074.2,1.9276269]
[1771064188469,1.88301723,2074.8,2074.2,1.9276269]
[1771064189670,1.44631762,2074.9,2074.2,1.9276269]
[1771064189870,1.44631762,2074.9,2073.7,0.00379354]
[1771064189871,1.88301723,2075.0,2074.4,1.9276269]
[1771064191773,1.44631762,2074.9,2074.4,1.9276269]
[1771064192076,1.83413525,2074.8,2074.4,1.9276269]
[1771064193380,3.28045287,2074.9,2074.4,1.9276269]
[1771064193680,1.83413525,2074.8,2074.4,1.9276269]
[1771064206092,1.44631762,2075.1,2074.4,1.9276269]
[1771064206283,3.38166397,2075.1,2074.4,1.9276269]
[1771064207590,1.93534635,2075.0,2074.4,1.9276269]
[1771064208794,1.44631762,2074.9,2074.4,1.9276269]
[1771064208986,1.93534635,2074.8,2074.4,1.9276269]
[1771064212797,1.93534635,2074.8,2074.3,2.10730324]
[1771064218304,1.93534635,2075.0,2074.3,2.10730324]
[1771064218798,1.93534635,2075.1,2074.3,2.10730324]
[1771064219005,6.53417229,2075.0,2074.3,2.10730324]
[1771064219199,1.93534635,2075.1,2074.3,2.10730324]
[1771064221099,0.00516552,2075.2,2074.3,2.10730324]
[1771064221299,0.00516552,2075.2,2074.8,1.90016968]
[1771064221795,9.0729684,2075.5,2074.8,1.90016968]
[1771064222000,6.53422904,2075.4,2074.8,1.90016968]
[1771064222202,2.00284993,2075.3,2074.8,1.90016968]
[1771064222393,2.00284993,2075.3,2074.3,1.90016968]
[1771064222596,2.00815956,2075.3,2074.3,1.90016968]
[1771064223103,2.00284993,2075.1,2074.3,1.90016968]
[1771064226602,2.00284993,2075.1,2074.5,1.90016968]
[1771064227701,40.8,2075.0,2074.5,1.90016968]
[1771064230209,42.80284993,2075.0,2074.5,1.90016968]
[1771064235917,2.00815956,2075.3,2074.7,1.90016968]
[1771064236419,42.80284993,2075.2,2074.7,1.90016968]
[1771064237920,2.00284993,2075.1,2074.7,1.90016968]
[1771064241826,40.8,2075.2,2074.7,1.90016968]
[1771064242023,42.80284993,2075.2,2074.7,1.90016968]
[1771064242328,2.00284993,2075.1,2074.8,2.14127968]
[1771064245527,2.00284993,2075.1,2074.8,0.24111]
[1771064253833,2.00284993,2075.1,2074.8,2.05005898]
[1771064254230,1.96988032,2075.6,2074.8,2.05005898]
[1771064254430,1.96988032,2075.9,2075.3,1.80894898]
[1771064254733,42.76988032,2075.8,2075.3,1.80894898]
[1771064255329,40.8,2075.8,2075.3,1.80894898]
[1771064255634,40.8,2075.8,2075.3,1.81357173]
[1771064255635,40.80576818,2075.8,2075.3,1.81357173]
[1771064255835,1.96988032,2075.7,2075.3,1.81357173]
[1771064256037,1.96988032,2075.7,2075.2,0.24106]
[1771064256237,1.96988032,2075.7,2075.2,2.05000898]
[1771064256940,1.96988032,2075.7,2075.2,2.0544688]
[1771064264549,40.80576818,2075.8,2075.2,2.0544688]
[1771064264747,42.61960762,2075.8,2075.2,2.0544688]
[1771064267048,1.81383944,2075.7,2075.2,2.0544688]
[1771064269150,40.80576818,2075.8,2075.2,2.0544688]
[1771064270149,0.00576818,2075.8,2075.2,2.0544688]
[1771064270447,8.18e-06,2075.8,2075.2,2.0544688]
[1771064272646,8.18e-06,2075.8,2075.7,1.96279208]
[1771064272845,1.81383944,2076.0,2075.7,1.96279208]
[1771064273750,1.81795708,2076.0,2075.7,1.96279208]
[1771064274045,40.8,2076.1,2075.2,0.00445982]